[Event "Late-Titled-Tuesday-Blitz-December-26-2023"]
[Site "Chess.com"]
[Date "2023.12.26"]
[Round "6"]
[White "Kapitan_Bayan"]
[Black "SnekkerAndersen"]
[Result "1-0"]
[WhiteElo "2353"]
[BlackElo "2558"]
[TimeControl "180+1"]
[EndTime "15:06:09 PST"]
[Termination "Kapitan_Bayan won by resignation"]

1. e4 {[%clk 0:03:00.9]} 1... h6 {[%clk 0:02:54.5]} 2. d4 {[%clk 0:03:00.6]}
2... a6 {[%clk 0:02:55.4]} 3. c4 {[%clk 0:03:00]} 3... e6 {[%clk 0:02:56]} 4.
Nc3 {[%clk 0:03:00.2]} 4... d6 {[%clk 0:02:56.6]} 5. Nf3 {[%clk 0:03:00.5]} 5...
Nc6 {[%clk 0:02:54.7]} 6. d5 {[%clk 0:02:59.5]} 6... Ne5 {[%clk 0:02:54.4]} 7.
Nxe5 {[%clk 0:02:59.4]} 7... dxe5 {[%clk 0:02:55.3]} 8. Be2 {[%clk 0:02:59.9]}
8... Nf6 {[%clk 0:02:54.6]} 9. Be3 {[%clk 0:02:58.7]} 9... Bd7 {[%clk
0:02:52.4]} 10. O-O {[%clk 0:02:58.3]} 10... Be7 {[%clk 0:02:49.8]} 11. c5
{[%clk 0:02:50.7]} 11... Qb8 {[%clk 0:02:44.4]} 12. Rc1 {[%clk 0:02:46.4]} 12...
O-O {[%clk 0:02:43.9]} 13. Qd2 {[%clk 0:02:37.4]} 13... Rd8 {[%clk 0:02:40]} 14.
Rfd1 {[%clk 0:02:36.6]} 14... Bf8 {[%clk 0:02:19.7]} 15. Qc2 {[%clk 0:02:26.4]}
15... exd5 {[%clk 0:02:15.9]} 16. exd5 {[%clk 0:02:26.5]} 16... Bg4 {[%clk
0:02:15.2]} 17. h3 {[%clk 0:02:08.5]} 17... Bxe2 {[%clk 0:02:12.2]} 18. Qxe2
{[%clk 0:02:09.4]} 18... Qc8 {[%clk 0:02:11.2]} 19. Qf3 {[%clk 0:02:00.2]} 19...
Qd7 {[%clk 0:02:08.4]} 20. Bxh6 {[%clk 0:01:51.4]} 20... Bxc5 {[%clk 0:02:08]}
21. Bg5 {[%clk 0:01:46.2]} 21... Be7 {[%clk 0:02:05.7]} 22. Bxf6 {[%clk
0:01:16.1]} 22... Bxf6 {[%clk 0:02:03.5]} 23. d6 {[%clk 0:01:10.8]} 23... Bg5
{[%clk 0:01:47.1]} 24. dxc7 {[%clk 0:00:47.8]} 24... Qxc7 {[%clk 0:01:46.6]} 25.
Nd5 {[%clk 0:00:48.1]} 25... Qd6 {[%clk 0:01:26.5]} 26. Rc7 {[%clk 0:00:42.8]}
26... Qe6 {[%clk 0:01:13.4]} 27. Qh5 {[%clk 0:00:28.1]} 27... Rxd5 {[%clk
0:01:06.2]} 28. Rxd5 {[%clk 0:00:27.5]} 28... Qxd5 {[%clk 0:01:07.1]} 29. Qxg5
{[%clk 0:00:27.7]} 29... Rd8 {[%clk 0:01:02.3]} 30. Qe7 {[%clk 0:00:25.4]} 30...
Rf8 {[%clk 0:00:58.8]} 31. Rxb7 {[%clk 0:00:24.2]} 31... Qxa2 {[%clk 0:00:56.4]}
32. Qxe5 {[%clk 0:00:22.3]} 32... Qc4 {[%clk 0:00:50.2]} 33. Ra7 {[%clk
0:00:20.5]} 33... Rd8 {[%clk 0:00:47]} 34. Qc7 {[%clk 0:00:18.5]} 34... Rd1+
{[%clk 0:00:45.2]} 35. Kh2 {[%clk 0:00:18.5]} 35... g6 {[%clk 0:00:44.2]} 36.
Qxc4 {[%clk 0:00:18.3]} 1-0

[Event "Late-Titled-Tuesday-Blitz-December-26-2023"]
[Site "Chess.com"]
[Date "2023.12.26"]
[Round "6"]
[White "Fh2411"]
[Black "Korchmar_Vasiliy"]
[Result "0-1"]
[WhiteElo "2535"]
[BlackElo "2803"]
[TimeControl "180+1"]
[EndTime "15:06:13 PST"]
[Termination "Korchmar_Vasiliy won on time"]

1. d4 {[%clk 0:03:00.9]} 1... Nf6 {[%clk 0:02:59.8]} 2. Nf3 {[%clk 0:03:00.9]}
2... d5 {[%clk 0:03:00]} 3. c4 {[%clk 0:03:00.2]} 3... e6 {[%clk 0:03:00.5]} 4.
Nc3 {[%clk 0:03:00.6]} 4... dxc4 {[%clk 0:03:00.2]} 5. e3 {[%clk 0:02:55]} 5...
a6 {[%clk 0:02:59.3]} 6. a4 {[%clk 0:02:50.9]} 6... b6 {[%clk 0:02:59.5]} 7.
Bxc4 {[%clk 0:02:51.1]} 7... Bb7 {[%clk 0:03:00.2]} 8. O-O {[%clk 0:02:51.5]}
8... Bb4 {[%clk 0:03:00.9]} 9. Qe2 {[%clk 0:02:44.8]} 9... O-O {[%clk
0:02:59.9]} 10. Bd2 {[%clk 0:02:15.1]} 10... Nbd7 {[%clk 0:02:57.3]} 11. Rfd1
{[%clk 0:02:14.6]} 11... Qe7 {[%clk 0:02:55.4]} 12. Be1 {[%clk 0:02:04.7]} 12...
Rfd8 {[%clk 0:02:39.7]} 13. Rac1 {[%clk 0:01:47.6]} 13... Bd6 {[%clk 0:02:23.7]}
14. e4 {[%clk 0:01:29.2]} 14... e5 {[%clk 0:02:21.5]} 15. d5 {[%clk 0:01:18.7]}
15... Bc5 {[%clk 0:01:56.6]} 16. Bd2 {[%clk 0:01:03.5]} 16... Ne8 {[%clk
0:01:56]} 17. Ne1 {[%clk 0:00:49.2]} 17... Nd6 {[%clk 0:01:53.2]} 18. Ba2 {[%clk
0:00:33.9]} 18... Qh4 {[%clk 0:01:48.9]} 19. Nd3 {[%clk 0:00:24.5]} 19... Bd4
{[%clk 0:01:48.6]} 20. g3 {[%clk 0:00:20.2]} 20... Qh3 {[%clk 0:01:43.1]} 21.
Qf3 {[%clk 0:00:17.3]} 21... Nf6 {[%clk 0:01:40.3]} 22. Qg2 {[%clk 0:00:17]}
22... Qxg2+ {[%clk 0:01:34.1]} 23. Kxg2 {[%clk 0:00:17.9]} 23... Nfxe4 {[%clk
0:01:06.9]} 24. Nxe4 {[%clk 0:00:08]} 24... Nxe4 {[%clk 0:01:07.8]} 25. Rxc7
{[%clk 0:00:07.7]} 25... Bxd5 {[%clk 0:01:08.5]} 26. Bxd5 {[%clk 0:00:07.7]}
26... Rxd5 {[%clk 0:01:09.4]} 27. Be3 {[%clk 0:00:02.6]} 27... Bxe3 {[%clk
0:01:06.1]} 28. fxe3 {[%clk 0:00:03.5]} 28... Rad8 {[%clk 0:01:06.8]} 29. Nf2
{[%clk 0:00:03.4]} 29... Rxd1 {[%clk 0:00:51]} 30. Nxd1 {[%clk 0:00:03.5]} 30...
Rd2+ {[%clk 0:00:51.8]} 31. Kf3 {[%clk 0:00:02.8]} 31... f5 {[%clk 0:00:52.4]}
0-1

[Event "Late-Titled-Tuesday-Blitz-December-26-2023"]
[Site "Chess.com"]
[Date "2023.12.26"]
[Round "6"]
[White "anasta10"]
[Black "hangemhigh"]
[Result "1-0"]
[WhiteElo "2613"]
[BlackElo "2466"]
[TimeControl "180+1"]
[EndTime "15:06:18 PST"]
[Termination "anasta10 won on time"]

1. Nf3 {[%clk 0:03:00.9]} 1... d6 {[%clk 0:02:59.5]} 2. d4 {[%clk 0:03:00.6]}
2... Nf6 {[%clk 0:02:58.3]} 3. c4 {[%clk 0:03:00.9]} 3... Nbd7 {[%clk
0:02:58.1]} 4. Nc3 {[%clk 0:03:01.3]} 4... e5 {[%clk 0:02:58.2]} 5. e3 {[%clk
0:03:01]} 5... c6 {[%clk 0:02:54.5]} 6. b3 {[%clk 0:03:00.8]} 6... e4 {[%clk
0:02:54.3]} 7. Nd2 {[%clk 0:03:00.8]} 7... d5 {[%clk 0:02:54.7]} 8. Bb2 {[%clk
0:03:01.2]} 8... Bd6 {[%clk 0:02:53.9]} 9. h3 {[%clk 0:03:00.7]} 9... a6 {[%clk
0:02:53.4]} 10. Qc2 {[%clk 0:03:00.3]} 10... O-O {[%clk 0:02:52.9]} 11. O-O-O
{[%clk 0:02:58.7]} 11... b5 {[%clk 0:02:51.5]} 12. c5 {[%clk 0:02:58.7]} 12...
Bc7 {[%clk 0:02:51.3]} 13. Kb1 {[%clk 0:02:58.2]} 13... Re8 {[%clk 0:02:50.4]}
14. g4 {[%clk 0:02:57.7]} 14... Nf8 {[%clk 0:02:49.1]} 15. Be2 {[%clk
0:02:54.1]} 15... Ng6 {[%clk 0:02:46.3]} 16. Rdg1 {[%clk 0:02:53]} 16... Nh4
{[%clk 0:02:43.6]} 17. Nd1 {[%clk 0:02:47.1]} 17... a5 {[%clk 0:02:37.2]} 18. g5
{[%clk 0:02:34.7]} 18... Nd7 {[%clk 0:02:35.7]} 19. f3 {[%clk 0:02:29.7]} 19...
exf3 {[%clk 0:02:24.4]} 20. Nxf3 {[%clk 0:02:29.6]} 20... Nf5 {[%clk 0:02:13.9]}
21. Qxf5 {[%clk 0:02:24.1]} 21... Nxc5 {[%clk 0:02:13.1]} 22. Qc2 {[%clk
0:02:22.9]} 22... Ne4 {[%clk 0:02:12.6]} 23. Bd3 {[%clk 0:02:17.6]} 23... a4
{[%clk 0:02:04.8]} 24. Ne5 {[%clk 0:02:07.6]} 24... Bxe5 {[%clk 0:02:00.3]} 25.
dxe5 {[%clk 0:02:08.5]} 25... axb3 {[%clk 0:02:00.4]} 26. axb3 {[%clk
0:02:08.4]} 26... Bf5 {[%clk 0:01:58]} 27. Rf1 {[%clk 0:01:38.1]} 27... Qxg5
{[%clk 0:01:53.4]} 28. Rhg1 {[%clk 0:01:36.2]} 28... Qh5 {[%clk 0:01:49.8]} 29.
e6 {[%clk 0:01:27.1]} 29... f6 {[%clk 0:01:34.4]} 30. Nf2 {[%clk 0:01:19.1]}
30... Rxe6 {[%clk 0:01:16.2]} 31. Nxe4 {[%clk 0:01:00.7]} 31... Bxe4 {[%clk
0:01:02]} 32. Bxe4 {[%clk 0:00:59.9]} 32... dxe4 {[%clk 0:00:57.2]} 33. Rxf6
{[%clk 0:00:53.1]} 33... Rxf6 {[%clk 0:00:51.1]} 34. Bxf6 {[%clk 0:00:54]} 34...
g6 {[%clk 0:00:19.9]} 35. Bb2 {[%clk 0:00:49.4]} 35... Qd5 {[%clk 0:00:08.3]}
36. Rd1 {[%clk 0:00:47]} 1-0

[Event "Late-Titled-Tuesday-Blitz-December-26-2023"]
[Site "Chess.com"]
[Date "2023.12.26"]
[Round "6"]
[White "djano"]
[Black "Iball95"]
[Result "0-1"]
[WhiteElo "2647"]
[BlackElo "2821"]
[TimeControl "180+1"]
[EndTime "15:06:35 PST"]
[Termination "Iball95 won by checkmate"]

1. e4 {[%clk 0:03:00.9]} 1... c5 {[%clk 0:02:59.3]} 2. Nc3 {[%clk 0:03:00.7]}
2... e6 {[%clk 0:02:59.9]} 3. Nge2 {[%clk 0:02:59.4]} 3... a6 {[%clk 0:02:59.8]}
4. g3 {[%clk 0:02:59.2]} 4... d5 {[%clk 0:02:59.4]} 5. exd5 {[%clk 0:02:58.6]}
5... exd5 {[%clk 0:03:00.3]} 6. d4 {[%clk 0:02:58.8]} 6... Nf6 {[%clk
0:02:59.7]} 7. Bg2 {[%clk 0:02:58.1]} 7... Nc6 {[%clk 0:03:00.5]} 8. O-O {[%clk
0:02:57.6]} 8... Be7 {[%clk 0:03:00.9]} 9. dxc5 {[%clk 0:02:51]} 9... Bxc5
{[%clk 0:03:01.8]} 10. Bg5 {[%clk 0:02:51.3]} 10... O-O {[%clk 0:02:59.7]} 11.
Nxd5 {[%clk 0:02:46.2]} 11... Be7 {[%clk 0:02:53.7]} 12. Nxe7+ {[%clk
0:02:44.4]} 12... Qxe7 {[%clk 0:02:54.6]} 13. Nc3 {[%clk 0:02:40.2]} 13... Qe5
{[%clk 0:02:52.7]} 14. Bf4 {[%clk 0:02:32.8]} 14... Qa5 {[%clk 0:02:48.1]} 15.
Nd5 {[%clk 0:02:22.3]} 15... Nxd5 {[%clk 0:02:48.3]} 16. Qxd5 {[%clk 0:02:23.2]}
16... Qb6 {[%clk 0:02:47.1]} 17. Qb3 {[%clk 0:02:15.7]} 17... Qa5 {[%clk
0:02:45.5]} 18. c3 {[%clk 0:02:08.9]} 18... h5 {[%clk 0:02:24.9]} 19. Rfe1
{[%clk 0:02:04.5]} 19... h4 {[%clk 0:02:25]} 20. Rad1 {[%clk 0:01:52.1]} 20...
h3 {[%clk 0:02:17.2]} 21. Bf3 {[%clk 0:01:41.5]} 21... Qf5 {[%clk 0:02:04.3]}
22. Rd5 {[%clk 0:01:31.7]} 22... Qg6 {[%clk 0:02:04.6]} 23. Rg5 {[%clk
0:01:27.5]} 23... Qf6 {[%clk 0:02:04.4]} 24. Rh5 {[%clk 0:01:14.2]} 24... g6
{[%clk 0:01:16.4]} 25. Rc5 {[%clk 0:01:10.2]} 25... Ne7 {[%clk 0:01:05.4]} 26.
Bg5 {[%clk 0:01:06.6]} 26... Qxf3 {[%clk 0:01:05]} 27. Kf1 {[%clk 0:00:54.7]}
27... Nf5 {[%clk 0:00:30.9]} 28. Bf4 {[%clk 0:00:48.7]} 28... Bd7 {[%clk
0:00:24.3]} 29. Rc7 {[%clk 0:00:40.8]} 29... Rae8 {[%clk 0:00:20.8]} 30. Re5
{[%clk 0:00:29.6]} 30... Rxe5 {[%clk 0:00:16.8]} 31. Bxe5 {[%clk 0:00:29.6]}
31... Be6 {[%clk 0:00:06]} 32. Qxb7 {[%clk 0:00:27.3]} 32... Qd1# {[%clk
0:00:05.1]} 0-1

[Event "Late-Titled-Tuesday-Blitz-December-26-2023"]
[Site "Chess.com"]
[Date "2023.12.26"]
[Round "6"]
[White "Abduzhaparov"]
[Black "Predator0608"]
[Result "0-1"]
[WhiteElo "2390"]
[BlackElo "2533"]
[TimeControl "180+1"]
[EndTime "15:06:42 PST"]
[Termination "Predator0608 won by resignation"]

1. d4 {[%clk 0:03:00.9]} 1... d6 {[%clk 0:02:56.2]} 2. e4 {[%clk 0:02:58.3]}
2... Nd7 {[%clk 0:02:57.1]} 3. Nc3 {[%clk 0:02:57.5]} 3... e6 {[%clk 0:02:57.4]}
4. f4 {[%clk 0:02:56.3]} 4... Ne7 {[%clk 0:02:57.8]} 5. Nf3 {[%clk 0:02:55.4]}
5... b6 {[%clk 0:02:58.4]} 6. a4 {[%clk 0:02:54.5]} 6... Bb7 {[%clk 0:02:57.6]}
7. a5 {[%clk 0:02:53.8]} 7... a6 {[%clk 0:02:56.3]} 8. axb6 {[%clk 0:02:53.7]}
8... cxb6 {[%clk 0:02:54.6]} 9. Be3 {[%clk 0:02:50.7]} 9... d5 {[%clk
0:02:51.4]} 10. e5 {[%clk 0:02:48.1]} 10... Nc6 {[%clk 0:02:39.7]} 11. f5 {[%clk
0:02:34.1]} 11... exf5 {[%clk 0:02:37.4]} 12. Nxd5 {[%clk 0:02:31.3]} 12... g6
{[%clk 0:02:32.9]} 13. Bg5 {[%clk 0:02:25.7]} 13... Be7 {[%clk 0:02:24.2]} 14.
Nxe7 {[%clk 0:02:15.2]} 14... Nxe7 {[%clk 0:02:25.1]} 15. Bc4 {[%clk 0:02:11.1]}
15... h6 {[%clk 0:02:07.3]} 16. Bh4 {[%clk 0:01:48]} 16... g5 {[%clk 0:02:02.6]}
17. Bf2 {[%clk 0:01:47.9]} 17... Nd5 {[%clk 0:01:53.2]} 18. O-O {[%clk
0:01:42.6]} 18... Qc7 {[%clk 0:01:27.6]} 19. Bd3 {[%clk 0:01:41.8]} 19... f4
{[%clk 0:01:23.9]} 20. Bf5 {[%clk 0:01:33.7]} 20... Nf8 {[%clk 0:01:05.1]} 21.
c4 {[%clk 0:01:30.4]} 21... Ne7 {[%clk 0:01:03.5]} 22. Bd3 {[%clk 0:01:26.1]}
22... Neg6 {[%clk 0:00:31.5]} 23. d5 {[%clk 0:01:24.2]} 23... Qd7 {[%clk
0:00:28.7]} 24. e6 {[%clk 0:01:19.6]} 24... fxe6 {[%clk 0:00:27.5]} 25. dxe6
{[%clk 0:01:20.5]} 25... Qc6 {[%clk 0:00:25.5]} 26. Qc2 {[%clk 0:01:05.3]} 26...
Ne5 {[%clk 0:00:24.3]} 27. Bd4 {[%clk 0:00:44.1]} 27... Nxf3+ {[%clk 0:00:18.8]}
28. gxf3 {[%clk 0:00:42.6]} 28... Rg8 {[%clk 0:00:19.7]} 29. e7 {[%clk
0:00:26.9]} 29... Ne6 {[%clk 0:00:17.8]} 30. Rae1 {[%clk 0:00:05]} 30... Nxd4
{[%clk 0:00:16.6]} 31. Bg6+ {[%clk 0:00:04.7]} 31... Rxg6 {[%clk 0:00:16.2]} 32.
Qd3 {[%clk 0:00:02.2]} 0-1

[Event "Late-Titled-Tuesday-Blitz-December-26-2023"]
[Site "Chess.com"]
[Date "2023.12.26"]
[Round "6"]
[White "maurovargas01"]
[Black "Felix-Rose"]
[Result "0-1"]
[WhiteElo "1836"]
[BlackElo "2233"]
[TimeControl "180+1"]
[EndTime "15:06:45 PST"]
[Termination "Felix-Rose won on time"]

1. e4 {[%clk 0:03:00]} 1... e5 {[%clk 0:02:58.3]} 2. Nf3 {[%clk 0:02:59.9]} 2...
Nc6 {[%clk 0:02:58.4]} 3. d4 {[%clk 0:03:00.8]} 3... exd4 {[%clk 0:02:58.6]} 4.
Bc4 {[%clk 0:03:01.7]} 4... Nf6 {[%clk 0:02:58.6]} 5. O-O {[%clk 0:03:01.5]}
5... Nxe4 {[%clk 0:02:58.9]} 6. Bd5 {[%clk 0:03:00.4]} 6... Nf6 {[%clk
0:02:55.2]} 7. Re1+ {[%clk 0:02:58]} 7... Ne7 {[%clk 0:02:53.4]} 8. Ng5 {[%clk
0:02:53.5]} 8... Nxd5 {[%clk 0:02:36.8]} 9. Qh5 {[%clk 0:02:37]} 9... g6 {[%clk
0:02:30.7]} 10. Qf3 {[%clk 0:02:36]} 10... f6 {[%clk 0:02:22.5]} 11. Qxd5 {[%clk
0:02:17.3]} 11... fxg5 {[%clk 0:02:19.9]} 12. Bxg5 {[%clk 0:02:16.6]} 12... c6
{[%clk 0:02:14.2]} 13. Qxd4 {[%clk 0:02:16.2]} 13... Rg8 {[%clk 0:02:08.6]} 14.
Nc3 {[%clk 0:02:16.3]} 14... d5 {[%clk 0:02:06.5]} 15. Rad1 {[%clk 0:02:07.9]}
15... h6 {[%clk 0:02:00.4]} 16. Bf6 {[%clk 0:02:06.6]} 16... Bf5 {[%clk
0:01:30.4]} 17. g4 {[%clk 0:01:57.8]} 17... Bxc2 {[%clk 0:01:03.3]} 18. Rd2
{[%clk 0:01:56.6]} 18... Be4 {[%clk 0:01:03.5]} 19. Nxe4 {[%clk 0:01:27.1]}
19... dxe4 {[%clk 0:01:04.4]} 20. Qe3 {[%clk 0:01:22.6]} 20... Qc7 {[%clk
0:00:49.1]} 21. Qxe4 {[%clk 0:01:18.5]} 21... Rd8 {[%clk 0:00:37.2]} 22. Rde2
{[%clk 0:01:04.5]} 22... Rd7 {[%clk 0:00:34.3]} 23. Qe6 {[%clk 0:01:00.3]} 23...
Qf4 {[%clk 0:00:25.2]} 24. Re4 {[%clk 0:00:28.2]} 24... Qf3 {[%clk 0:00:19.1]}
25. R4e3 {[%clk 0:00:14.6]} 25... Qd5 {[%clk 0:00:15.5]} 26. Bxe7 {[%clk
0:00:06]} 26... Qxe6 {[%clk 0:00:15.7]} 27. Rxe6 {[%clk 0:00:04.7]} 27... Rxe7
{[%clk 0:00:16.1]} 0-1

[Event "Late-Titled-Tuesday-Blitz-December-26-2023"]
[Site "Chess.com"]
[Date "2023.12.26"]
[Round "6"]
[White "carokannlover213"]
[Black "Petukhov_Dmitry"]
[Result "1-0"]
[WhiteElo "2688"]
[BlackElo "2474"]
[TimeControl "180+1"]
[EndTime "15:06:50 PST"]
[Termination "carokannlover213 won on time"]

1. e4 {[%clk 0:03:00.9]} 1... c5 {[%clk 0:02:59.7]} 2. Nf3 {[%clk 0:03:00.6]}
2... d6 {[%clk 0:03:00.1]} 3. d4 {[%clk 0:03:01.1]} 3... cxd4 {[%clk 0:03:01]}
4. Nxd4 {[%clk 0:03:01.8]} 4... Nf6 {[%clk 0:03:01.3]} 5. Nc3 {[%clk 0:03:02.4]}
5... Nc6 {[%clk 0:03:01.1]} 6. Bg5 {[%clk 0:03:01.1]} 6... Bd7 {[%clk
0:03:00.8]} 7. Qd2 {[%clk 0:02:57.5]} 7... Rc8 {[%clk 0:03:00.8]} 8. Nxc6 {[%clk
0:02:58]} 8... Bxc6 {[%clk 0:02:57.6]} 9. f3 {[%clk 0:02:57.3]} 9... h6 {[%clk
0:02:53.4]} 10. Be3 {[%clk 0:02:55.9]} 10... g5 {[%clk 0:02:48.6]} 11. O-O-O
{[%clk 0:02:52.5]} 11... Bg7 {[%clk 0:02:47.7]} 12. Kb1 {[%clk 0:02:51.4]} 12...
Qa5 {[%clk 0:02:40.9]} 13. Bd4 {[%clk 0:02:44.4]} 13... b5 {[%clk 0:02:32.1]}
14. Nxb5 {[%clk 0:02:24.6]} 14... Qxd2 {[%clk 0:02:14.3]} 15. Rxd2 {[%clk
0:02:25.5]} 15... Bd7 {[%clk 0:01:48.7]} 16. Nxa7 {[%clk 0:01:42.4]} 16... Rb8
{[%clk 0:01:46.8]} 17. e5 {[%clk 0:01:30.6]} 17... Nd5 {[%clk 0:00:56.1]} 18. e6
{[%clk 0:01:10]} 18... Nc3+ {[%clk 0:00:35.2]} 19. Ka1 {[%clk 0:00:56.4]} 19...
Bxd4 {[%clk 0:00:28.2]} 20. exd7+ {[%clk 0:00:55.6]} 20... Kxd7 {[%clk 0:00:28]}
21. Rxd4 {[%clk 0:00:56.2]} 21... Rb7 {[%clk 0:00:21.2]} 22. bxc3 {[%clk
0:00:54.8]} 22... Rxa7 {[%clk 0:00:18.6]} 23. Bb5+ {[%clk 0:00:54.2]} 23... Ke6
{[%clk 0:00:16]} 24. a4 {[%clk 0:00:53.9]} 24... Rc8 {[%clk 0:00:14.3]} 25. c4
{[%clk 0:00:52.3]} 25... Kf6 {[%clk 0:00:13.2]} 26. Kb2 {[%clk 0:00:52.1]} 26...
Rac7 {[%clk 0:00:13]} 27. Rhd1 {[%clk 0:00:52]} 27... Rc5 {[%clk 0:00:13.9]} 28.
Kb3 {[%clk 0:00:52.3]} 28... Re5 {[%clk 0:00:13.7]} 29. Re4 {[%clk 0:00:52.1]}
29... Rec5 {[%clk 0:00:13.4]} 30. Rd5 {[%clk 0:00:52.3]} 30... R5c7 {[%clk
0:00:12.4]} 31. g4 {[%clk 0:00:52.4]} 31... Kg7 {[%clk 0:00:10.2]} 32. Kb4
{[%clk 0:00:50.5]} 32... Kf6 {[%clk 0:00:10.1]} 33. a5 {[%clk 0:00:50]} 33...
Rd8 {[%clk 0:00:08]} 34. a6 {[%clk 0:00:50.4]} 34... e6 {[%clk 0:00:08.1]} 35.
Rd1 {[%clk 0:00:49.5]} 35... Ke7 {[%clk 0:00:09]} 36. Red4 {[%clk 0:00:49.9]}
36... Ra7 {[%clk 0:00:07.9]} 37. Ka5 {[%clk 0:00:49.8]} 37... Rc7 {[%clk
0:00:06.7]} 38. Kb6 {[%clk 0:00:43.9]} 38... Rcc8 {[%clk 0:00:03.3]} 39. a7
{[%clk 0:00:43.8]} 39... Ra8 {[%clk 0:00:03.4]} 40. Rxd6 {[%clk 0:00:42.6]}
40... Rxd6+ {[%clk 0:00:02.7]} 41. Rxd6 {[%clk 0:00:43.2]} 41... Kxd6 {[%clk
0:00:03]} 42. c5+ {[%clk 0:00:44.1]} 42... Ke7 {[%clk 0:00:02.6]} 43. c6 {[%clk
0:00:44.3]} 1-0

[Event "Late-Titled-Tuesday-Blitz-December-26-2023"]
[Site "Chess.com"]
[Date "2023.12.26"]
[Round "6"]
[White "CFalcons8"]
[Black "robertoalejandro10"]
[Result "0-1"]
[WhiteElo "2261"]
[BlackElo "2568"]
[TimeControl "180+1"]
[EndTime "15:06:52 PST"]
[Termination "robertoalejandro10 won by resignation"]

1. d4 {[%clk 0:03:00.9]} 1... Nf6 {[%clk 0:02:59.5]} 2. Nf3 {[%clk 0:02:59.2]}
2... c5 {[%clk 0:02:59.7]} 3. d5 {[%clk 0:02:52]} 3... d6 {[%clk 0:02:57.8]} 4.
c4 {[%clk 0:02:49.7]} 4... g6 {[%clk 0:02:58]} 5. Nc3 {[%clk 0:02:44.3]} 5...
Bg7 {[%clk 0:02:57.8]} 6. Qc2 {[%clk 0:02:40.4]} 6... O-O {[%clk 0:02:57.5]} 7.
e4 {[%clk 0:02:36.6]} 7... Na6 {[%clk 0:02:57.6]} 8. a3 {[%clk 0:02:35.1]} 8...
Nc7 {[%clk 0:02:57.7]} 9. Be2 {[%clk 0:02:32.8]} 9... a6 {[%clk 0:02:58.1]} 10.
h3 {[%clk 0:02:30.1]} 10... Rb8 {[%clk 0:02:57.9]} 11. a4 {[%clk 0:02:24]} 11...
b5 {[%clk 0:02:57.7]} 12. axb5 {[%clk 0:02:24.9]} 12... axb5 {[%clk 0:02:58.2]}
13. cxb5 {[%clk 0:02:17.5]} 13... Bd7 {[%clk 0:02:55.5]} 14. Be3 {[%clk
0:02:13.9]} 14... Nxb5 {[%clk 0:02:54.4]} 15. O-O {[%clk 0:02:11.7]} 15... Qb6
{[%clk 0:02:28.1]} 16. Nd2 {[%clk 0:02:06]} 16... Nd4 {[%clk 0:02:23.6]} 17.
Bxd4 {[%clk 0:02:03.8]} 17... cxd4 {[%clk 0:02:24.5]} 18. Nc4 {[%clk 0:02:03.3]}
18... Qc5 {[%clk 0:02:07.2]} 19. Na4 {[%clk 0:01:54.1]} 19... Bxa4 {[%clk
0:02:03.6]} 20. Rxa4 {[%clk 0:01:55]} 20... Rfc8 {[%clk 0:02:01.3]} 21. Qd3
{[%clk 0:01:45.5]} 21... Nd7 {[%clk 0:01:56.2]} 22. f4 {[%clk 0:01:36.6]} 22...
Qc7 {[%clk 0:01:51.9]} 23. Qa3 {[%clk 0:01:30.5]} 23... Nc5 {[%clk 0:01:47.4]}
24. Ra7 {[%clk 0:01:27.2]} 24... Rb7 {[%clk 0:01:47.3]} 25. Rxb7 {[%clk
0:01:21.1]} 25... Qxb7 {[%clk 0:01:48.2]} 26. Na5 {[%clk 0:01:12.4]} 26... Qd7
{[%clk 0:01:24.3]} 27. Bg4 {[%clk 0:00:17.9]} 27... f5 {[%clk 0:01:15.8]} 28.
exf5 {[%clk 0:00:18.8]} 28... gxf5 {[%clk 0:01:16.4]} 29. Be2 {[%clk 0:00:16.2]}
29... d3 {[%clk 0:01:09.9]} 30. Bxd3 {[%clk 0:00:15.1]} 30... Nxd3 {[%clk
0:01:10.2]} 31. Qxd3 {[%clk 0:00:14.2]} 31... Qa7+ {[%clk 0:01:10.2]} 32. Kh2
{[%clk 0:00:13.7]} 32... Qxa5 {[%clk 0:01:10.1]} 33. Qxf5 {[%clk 0:00:14.2]}
33... Qc7 {[%clk 0:01:03.1]} 34. Rf3 {[%clk 0:00:10.4]} 34... Rf8 {[%clk
0:00:58]} 35. Qe6+ {[%clk 0:00:08.6]} 35... Kh8 {[%clk 0:00:58.1]} 36. Rg3
{[%clk 0:00:05.4]} 36... Qc1 {[%clk 0:00:38.3]} 37. Qg4 {[%clk 0:00:04.5]} 37...
Rf7 {[%clk 0:00:29.8]} 38. Qe6 {[%clk 0:00:03.6]} 38... Qxf4 {[%clk 0:00:23.7]}
39. Qc8+ {[%clk 0:00:03.3]} 39... Rf8 {[%clk 0:00:23]} 40. Qe6 {[%clk
0:00:03.8]} 40... Be5 {[%clk 0:00:21.1]} 41. h4 {[%clk 0:00:02.2]} 41... Qxg3+
{[%clk 0:00:21.1]} 0-1